bitfinex-derivatives/quotes_ETHF0:USTF0_20241102
["timestamp","ask_amount","ask_price","bid_price","bid_amount"]
[1730534887428,0.27926,2507.5,2507.4,0.27926]
[1730534887628,3.61265096,2507.5,2507.4,0.27926]
[1730534888635,0.27928,2507.3,2507.2,0.27929]
[1730534888842,1.43644548,2507.3,2507.2,0.27929]
[1730534889431,1.71572548,2507.3,2507.2,0.27929]
[1730534892431,0.27929,2507.2,2507.1,0.2793]
[1730534892744,1.87544548,2507.2,2507.1,0.2793]
[1730534895635,2.15473548,2507.2,2507.1,0.2793]
[1730534895832,1.87544548,2507.2,2507.1,0.2793]
[1730534896036,2.15473548,2507.2,2507.1,0.2793]
[1730534896744,1.87544548,2507.2,2507.1,0.2793]
[1730534897041,2.15473548,2507.2,2507.1,0.2793]
[1730534899747,0.2793,2507.1,2507.0,0.7149]
[1730534900741,3.00964548,2507.2,2507.1,0.2793]
[1730534901539,0.2793,2507.1,2507.0,0.7149]
[1730534901739,0.2793,2507.1,2507.0,0.71491]
[1730534902044,0.2793,2507.1,2507.0,0.4356]
[1730534902548,0.2793,2507.1,2507.0,0.71491]
[1730534905240,3.9888,2507.1,2506.8,0.8668]
[1730534905544,2.87289096,2506.9,2506.7,0.4635]
[1730534905752,1.16203,2506.8,2506.7,0.74283]
[1730534905949,1.59733,2506.8,2506.7,0.74283]
[1730534906151,1.318,2506.8,2506.7,0.74283]
[1730534906449,0.4353,2506.8,2506.7,0.74283]
[1730534907462,1.43644548,2506.9,2506.8,0.27933]
[1730534917268,1.43644548,2506.9,2506.8,0.86431228]
[1730534917570,1.43644548,2506.9,2506.8,0.27933]
[1730534918167,1.43644548,2506.9,2506.8,0.86437888]
[1730534919467,1.43644548,2506.9,2506.8,0.27933]
[1730534919662,1.43644548,2506.9,2506.8,0.8644127]
[1730534919862,1.43644548,2506.9,2506.8,0.86441626]
[1730534920163,1.43644548,2506.9,2506.8,0.86441408]
[1730534922667,3.6551,2507.3,2506.8,4.85321408]
[1730534922668,1.43644548,2507.0,2506.8,4.85321408]
[1730534922872,1.43644548,2507.0,2506.9,1.86306066]
[1730534923170,1.43644548,2507.0,2506.9,5.14202]
[1730534923358,1.43644548,2507.0,2506.9,6.6635891]
[1730534923564,1.43644548,2507.0,2506.9,6.78833913]
[1730534923765,1.43644548,2507.0,2506.9,6.2031406]
[1730534924063,1.43644548,2507.0,2506.9,6.78837001]
[1730534926170,1.43644548,2507.0,2506.9,6.78867411]
[1730534926977,1.43644548,2507.0,2506.9,5.14202]
[1730534927173,1.43644548,2507.0,2506.9,6.78869885]
[1730534928366,1.43644548,2507.0,2506.9,6.7889922]
[1730534929165,1.43644548,2507.0,2506.9,2.8001922]
[1730534929475,1.43644548,2507.0,2506.9,6.7889922]
[1730534930066,1.43644548,2507.0,2506.9,1.9262922]
[1730534930671,1.43644548,2507.0,2506.9,0.98972459]
[1730534931166,2.30164548,2507.0,2506.9,0.86496958]
[1730534931361,2.30164548,2507.0,2506.9,0.9897427]
[1730534931563,2.58095548,2507.0,2506.9,0.58564958]
[1730534931760,0.27932,2506.9,2506.7,0.27934]
[1730534932072,2.87289096,2506.8,2506.7,0.27934]
[1730534932369,2.87289096,2506.8,2506.7,0.86518306]
[1730534932765,1.43644548,2506.8,2506.7,0.86518306]
[1730534933169,1.43644548,2506.8,2506.7,0.98996078]
[1730534933374,1.43644548,2506.8,2506.7,0.86518306]
[1730534934066,1.43644548,2506.8,2506.7,0.86524285]
[1730534934265,1.43644548,2506.8,2506.7,0.27934]
[1730534934472,1.43644548,2506.8,2506.7,0.8652562]
[1730534937176,1.43644548,2506.8,2506.7,0.27934]
[1730534938176,1.43644548,2506.8,2506.7,0.86515893]
[1730534938375,1.43644548,2506.8,2506.7,0.27934]
[1730534940675,1.43644548,2506.8,2506.7,0.86513973]
[1730534940983,1.43644548,2506.8,2506.7,0.27934]
[1730534941380,1.43644548,2506.8,2506.7,0.98990636]
[1730534941675,1.43644548,2506.8,2506.7,5.91671109]
[1730534942378,1.43644548,2506.8,2506.7,9.12451109]
[1730534942871,1.43644548,2506.8,2506.7,5.91671109]
[1730534943078,1.43644548,2506.8,2506.7,0.98990636]
[1730534943470,1.43644548,2506.8,2506.7,4.97950636]
[1730534944183,1.43644548,2506.8,2506.7,0.98990636]
[1730534944671,1.43644548,2506.8,2506.7,0.98991896]
[1730534944877,1.43644548,2506.8,2506.7,0.86513888]
[1730534946877,1.43644548,2506.8,2506.7,0.98991735]
[1730534947682,1.43644548,2506.8,2506.7,0.86513888]
[1730534948084,1.43644548,2506.8,2506.7,0.86510428]
[1730534948379,1.43644548,2506.8,2506.7,0.98988182]
[1730534951586,1.43644548,2506.8,2506.7,0.86510428]
[1730534951779,1.43644548,2506.8,2506.7,0.98987629]
[1730534954782,1.43644548,2506.8,2506.7,1.92711814]
[1730534955189,1.43644548,2506.8,2506.7,0.27934]
[1730534955384,1.43644548,2506.8,2506.7,1.92710482]
[1730534955589,1.43644548,2506.8,2506.7,0.40410721]
[1730534955790,1.43644548,2506.8,2506.7,1.92714169]
[1730534957083,1.43644548,2506.8,2506.7,0.40410721]
[1730534957284,1.43644548,2506.8,2506.7,1.9272174]
[1730534958779,1.43644548,2506.8,2506.7,1.80245019]
[1730534959088,1.43644548,2506.8,2506.7,1.92721956]
[1730534962494,1.43644548,2506.8,2506.7,1.80245019]
[1730534962787,1.43644548,2506.8,2506.7,1.92721856]
[1730534963394,1.43644548,2506.8,2506.7,1.92732449]
[1730534966089,1.43644548,2506.8,2506.7,0.40410995]
[1730534966394,1.43644548,2506.8,2506.7,0.27934]
[1730534966697,1.43644548,2506.8,2506.7,1.9273522]
[1730534967997,1.43644548,2506.8,2506.7,1.92735176]
[1730534968490,1.43644548,2506.8,2506.7,0.98997207]
[1730534969492,1.43644548,2506.8,2506.7,0.86520231]
[1730534969701,1.43644548,2506.8,2506.7,0.27934]
[1730534969702,1.85484548,2506.8,2506.7,0.27934]
[1730534969892,1.85484548,2506.8,2506.7,0.86528782]
[1730534970291,1.85484548,2506.8,2506.7,0.99007004]
[1730534970791,1.85484548,2506.8,2506.7,0.86528782]
[1730534971001,1.85484548,2506.8,2506.7,0.99006997]
[1730534972192,2.13417548,2506.8,2506.7,0.99006997]
[1730534972397,1.85484548,2506.8,2506.7,0.99006997]
[1730534972792,2.13417548,2506.8,2506.7,0.99006997]
[1730534973294,1.85484548,2506.8,2506.7,0.99006997]
[1730534973491,1.85484548,2506.8,2506.7,0.99030712]
[1730534976200,1.85484548,2506.8,2506.7,1.92860798]
[1730534977903,1.85484548,2506.8,2506.7,0.27934]
[1730534979807,2.13418548,2506.8,2506.4,3.6612]
[1730534980102,1.43644548,2506.5,2506.4,3.94058]
[1730534981509,1.43644548,2506.5,2506.4,0.73278]
[1730534981707,1.43644548,2506.5,2506.4,3.94058]
[1730534983209,1.43644548,2506.5,2506.4,0.73278]
[1730534983405,1.43644548,2506.5,2506.4,4.06535942]
[1730534983902,1.43644548,2506.5,2506.4,0.85755942]
[1730534985109,1.43644548,2506.5,2506.4,3.55526798]
[1730534986704,1.43644548,2506.5,2506.4,3.55509033]
[1730534992719,1.43644548,2506.5,2506.4,2.3822508]
[1730534993221,1.43644548,2506.5,2506.4,0.58641976]
[1730534993222,6.15091548,2506.5,2506.4,0.58641976]
[1730534993715,6.15091548,2506.5,2506.0,0.27942]
[1730534993716,0.2794,2506.3,2506.0,0.27942]
[1730534993920,1.43644548,2506.1,2506.0,0.27942]
[1730534994213,1.43644548,2506.1,2506.0,1.28859057]
[1730534994611,1.43644548,2506.1,2506.0,1.28860175]
[1730534995013,1.43644548,2506.1,2506.0,1.56802175]
[1730534996520,1.43644548,2506.1,2506.0,1.56801703]
[1730534996713,1.43644548,2506.1,2506.0,1.44320631]
[1730535001425,1.43644548,2506.2,2506.1,0.27941]
[1730535005320,1.43644548,2506.2,2506.1,3.61200685]
[1730535005617,1.43644548,2506.2,2506.1,4.19274991]
[1730535007225,1.43644548,2506.2,2506.1,0.98494991]
[1730535011029,1.43644548,2506.2,2506.1,0.40420588]
[1730535011235,1.43644548,2506.2,2506.1,0.98511895]
[1730535014937,1.43644548,2506.2,2506.1,0.40420588]
[1730535015141,1.43644548,2506.2,2506.1,0.98534719]
[1730535018337,1.43644548,2506.2,2506.1,0.98544037]
[1730535019446,1.43644548,2506.2,2506.1,1.91550351]
[1730535019744,1.43644548,2506.2,2506.1,0.98544037]
[1730535020646,1.43644548,2506.2,2506.1,1.91556942]
[1730535020940,1.43644548,2506.2,2506.1,1.9155625]
[1730535025947,1.43644548,2506.2,2506.1,0.27941]
[1730535026148,1.43644548,2506.2,2506.1,1.91606076]
[1730535029356,1.43644548,2506.2,2506.1,0.27941]
[1730535029555,1.43644548,2506.2,2506.1,1.91626275]
[1730535032857,1.43644548,2506.2,2506.1,0.27941]
[1730535033058,1.43644548,2506.2,2506.1,2.3635236]
[1730535033258,1.43644548,2506.2,2506.1,2.36362758]
[1730535036261,1.43644548,2506.2,2506.1,3.52748434]
[1730535037058,1.43644548,2506.2,2506.1,0.72631]
[1730535037259,1.43644548,2506.2,2506.1,3.52801369]
[1730535037451,1.43644548,2506.2,2506.1,3.52816687]
[1730535037852,1.43644548,2506.2,2506.1,2.36414057]
[1730535038462,1.43644548,2506.2,2506.1,3.52834994]
[1730535039361,1.43644548,2506.2,2506.1,3.08144994]
[1730535039756,1.43644548,2506.2,2506.1,1.91724057]
[1730535039956,1.43644548,2506.2,2506.1,3.08149608]
[1730535040364,1.43644548,2506.2,2506.1,1.91724057]
[1730535042766,4.64424548,2506.2,2506.1,1.91724057]
[1730535042966,8.63464548,2506.2,2505.9,0.27943]
[1730535043262,3.2078,2506.2,2506.0,1.63869879]
[1730535043459,3.2078,2506.2,2506.1,0.7071403]
[1730535043964,7.1982,2506.2,2505.9,0.27943]
[1730535044166,7.1982,2506.2,2505.8,1.04337293]
[1730535044167,2.87289096,2506.0,2505.8,1.04337293]
[1730535044369,1.43644548,2506.0,2505.9,0.98655014]
[1730535047461,1.43644548,2506.0,2505.9,0.86173428]
[1730535048068,1.43644548,2506.0,2505.9,0.27943]
[1730535058870,1.43644548,2506.3,2506.2,0.2794]
[1730535059874,1.43644548,2506.3,2506.2,0.86059743]
[1730535060672,1.43644548,2506.3,2506.2,0.98538827]
[1730535061272,1.43644548,2506.3,2506.2,0.86059072]
[1730535061472,1.43644548,2506.3,2506.2,0.9853881]
[1730535062370,1.43644548,2506.3,2506.2,0.86059072]
[1730535062568,1.43644548,2506.3,2506.2,0.9853883]
[1730535064175,1.43644548,2506.3,2506.2,0.98538857]
[1730535065073,1.43644548,2506.3,2506.2,0.86060379]
[1730535065274,1.43644548,2506.3,2506.2,0.98540164]
[1730535066071,1.43644548,2506.3,2506.2,0.86060379]
[1730535067282,1.43644548,2506.3,2506.2,0.98540233]
[1730535067480,1.43644548,2506.3,2506.2,0.86060379]
[1730535068684,1.43644548,2506.3,2506.2,0.86061933]
[1730535068876,1.43644548,2506.3,2506.2,0.98541666]
[1730535071782,1.43644548,2506.3,2506.2,0.86061933]
[1730535071986,1.43644548,2506.3,2506.2,0.2794]
[1730535072686,1.71583548,2506.3,2506.1,0.27941]
[1730535072887,1.86444548,2506.2,2506.1,0.27941]
[1730535073089,2.28844548,2506.2,2506.1,0.27941]
[1730535085298,2.28844548,2506.2,2506.1,0.98569951]
[1730535086204,2.28844548,2506.2,2506.1,0.98572483]
[1730535086604,2.28844548,2506.2,2506.1,0.9857346]
[1730535087007,2.28844548,2506.2,2506.1,0.98573365]
[1730535090504,2.28844548,2506.2,2506.1,0.27941]
[1730535090708,2.28844548,2506.2,2506.1,0.98576534]
[1730535092706,2.28844548,2506.2,2506.1,0.27941]
[1730535100313,2.28844548,2506.2,2506.1,0.86125152]
[1730535102397,2.28844548,2506.2,2506.1,0.98606271]
[1730535102999,2.28844548,2506.2,2506.1,0.86125152]
[1730535103204,2.28844548,2506.2,2506.1,0.98618165]
[1730535104108,1.86444548,2506.2,2506.1,0.98618165]
[1730535105111,1.86444548,2506.2,2506.1,0.86145689]
[1730535105313,1.86444548,2506.2,2506.1,0.98626681]
[1730535106103,1.86444548,2506.2,2506.1,0.40421992]
[1730535106309,1.86444548,2506.2,2506.1,0.98626385]
[1730535108017,1.86444548,2506.2,2506.1,0.98627372]
[1730535112521,2.30274548,2506.2,2506.1,0.27941]
[1730535112717,2.30274548,2506.2,2506.1,0.98636712]
[1730535116117,2.30274548,2506.2,2506.1,0.98646525]
[1730535116617,2.30274548,2506.2,2506.1,0.86169887]
[1730535116817,2.30274548,2506.2,2506.1,0.9865106]
[1730535118417,2.58214548,2506.2,2506.1,0.9865106]
[1730535120016,6.24082891,2506.2,2506.1,0.98651029]
[1730535121724,6.24082891,2506.2,2506.1,0.70710029]
[1730535122223,10.23122891,2506.2,2506.1,0.98651029]
[1730535122423,10.23122891,2506.2,2506.1,0.27941]
[1730535122625,10.23122891,2506.2,2506.1,0.98654835]
[1730535123218,6.24082891,2506.2,2506.1,0.98654835]
[1730535124028,9.95182891,2506.2,2505.8,1.3172]
[1730535124230,1.43644548,2505.9,2505.8,1.59664]
[1730535124532,1.43644548,2505.9,2505.8,3.23546138]
[1730535126423,1.43644548,2505.9,2505.8,3.23524328]
[1730535128218,2.87289096,2505.9,2505.3,3.2078]
[1730535128426,1.63025,2505.8,2505.6,0.27946]
[1730535128638,0.27946,2505.7,2505.6,0.27946]
[1730535128825,0.27946,2505.7,2505.6,0.86166781]
[1730535129327,0.27946,2505.7,2505.6,0.27946]
[1730535129732,1.3508,2505.8,2505.4,1.3073]
[1730535130031,1.43644548,2505.5,2505.4,1.58679]
[1730535130231,1.43644548,2505.5,2505.4,2.16878764]
[1730535133033,1.89294548,2505.5,2505.4,2.16878764]
[1730535133232,1.89294548,2505.5,2505.4,1.58679]
[1730535133440,2.17242548,2505.5,2505.4,1.3073]
[1730535133623,2.61872548,2505.5,2505.4,1.3073]
[1730535134027,2.61872548,2505.5,2505.4,1.58679]
[1730535134236,2.61872548,2505.5,2505.4,1.3073]
[1730535134940,2.61872548,2505.5,2505.4,1.58679]
[1730535135137,2.61872548,2505.5,2505.4,1.3073]
[1730535135332,2.33924548,2505.5,2505.4,1.58679]
[1730535135637,2.61872548,2505.5,2505.4,1.58679]
[1730535136340,2.33924548,2505.5,2505.4,1.58679]
[1730535136537,2.61872548,2505.5,2505.4,1.3073]
[1730535137537,2.33924548,2505.5,2505.4,1.3073]
[1730535137742,0.27949,2505.4,2505.2,0.27951]
[1730535138039,1.43644548,2505.3,2505.2,0.2795]
[1730535138242,1.43644548,2505.3,2505.2,0.8606018]
[1730535138433,1.43644548,2505.3,2505.2,0.2795]
[1730535139541,1.71595548,2505.3,2505.1,1.60822]
[1730535139844,0.27953,2505.1,2504.9,0.27954]
[1730535140033,1.43644548,2505.0,2504.9,0.72504]
[1730535140433,1.43644548,2505.0,2504.9,0.4455]
[1730535140434,1.71597548,2505.0,2504.9,0.4455]
[1730535140636,1.43644548,2505.0,2504.9,0.4455]
[1730535141039,1.43644548,2505.0,2504.9,0.72505]
[1730535141242,1.43644548,2505.0,2504.4,0.819]
[1730535141243,0.27955,2504.9,2504.4,0.819]
[1730535141544,0.71035,2504.9,2504.7,0.27956]
[1730535141930,0.71035,2504.9,2504.7,0.27957]
[1730535142135,0.71035,2504.9,2504.6,1.2799]
[1730535142136,0.4308,2504.9,2504.6,1.2799]
[1730535142341,0.71035,2504.9,2504.6,1.55948]
[1730535142642,0.27956,2504.8,2504.6,1.55948]
[1730535142842,1.43644548,2504.7,2504.6,1.55948]
[1730535144440,1.43644548,2504.7,2504.6,1.2799]
[1730535144748,1.71601548,2504.7,2504.1,0.69907]
[1730535145040,1.2984,2504.6,2504.4,0.2796]
[1730535145244,1.2984,2504.6,2504.3,1.3294]
[1730535145450,1.2984,2504.6,2504.4,0.27959]
[1730535145635,1.57798,2504.6,2504.4,0.27959]
[1730535145841,1.2984,2504.6,2504.4,0.27959]
[1730535146235,1.2984,2504.6,2504.3,1.3294]
[1730535146540,1.2984,2504.6,2504.5,0.27959]
[1730535146743,2.73484548,2504.6,2504.5,0.27959]
[1730535146937,6.72764548,2504.6,2504.4,0.27959]
[1730535147137,1.2984,2504.6,2504.4,0.27959]
[1730535147337,1.2984,2504.6,2504.5,0.27959]
[1730535147543,1.2984,2504.6,2504.3,1.3294]
[1730535147745,1.43644548,2504.4,2504.3,0.7243]
[1730535152841,2.87289096,2504.4,2503.9,0.69913]
[1730535153148,1.43644548,2504.4,2503.7,3.2078]
[1730535153448,0.4209,2504.3,2504.2,0.27962]
[1730535153743,0.4209,2504.3,2504.0,3.2078]
[1730535153949,0.4209,2504.3,2504.1,0.27963]
[1730535153950,0.4548,2504.2,2504.1,0.27963]
[1730535154248,0.4209,2504.3,2504.2,0.70402]
[1730535154840,1.85734548,2504.3,2504.2,0.70402]
[1730535162551,1.43644548,2504.4,2504.2,0.4244]
[1730535162552,4.64424548,2504.4,2504.2,0.4244]
[1730535162756,1.43644548,2504.4,2504.3,1.16211]
[1730535177455,1.43644548,2504.4,2504.3,5.15491]
[1730535178963,1.43644548,2504.4,2504.3,8.36271]
[1730535183463,1.43644548,2504.4,2504.3,9.06864851]
[1730535185163,1.43644548,2504.4,2504.3,9.99918089]
[1730535185572,1.43644548,2504.4,2504.3,6.79138089]
[1730535185767,1.43644548,2504.4,2504.3,9.99918089]
[1730535186067,1.43644548,2504.4,2504.3,6.79138089]
[1730535186465,1.43644548,2504.4,2504.3,8.36271]
[1730535186669,1.43644548,2504.8,2504.3,11.15697446]
[1730535186864,1.43644548,2504.8,2504.7,3.48737]
[1730535187062,1.43644548,2504.8,2504.7,4.19400333]
[1730535187262,1.43644548,2504.8,2504.7,5.12492307]
[1730535187662,1.43644548,2504.8,2504.7,6.01362307]
[1730535187862,1.43644548,2504.8,2504.7,6.0134061]
[1730535188263,1.43644548,2504.8,2504.7,10.0062061]
[1730535189575,2.28384548,2504.9,2504.7,9.7266361]
[1730535189768,3.48731,2505.3,2504.8,0.70659761]
[1730535189769,1.87074548,2505.2,2504.8,0.70659761]
[1730535190071,1.87074548,2505.2,2505.1,0.27952]
[1730535190372,1.87074548,2505.2,2505.1,0.98586344]
[1730535190564,1.87074548,2505.2,2505.1,1.73280988]
[1730535190771,1.43644548,2505.2,2505.1,1.85765883]
[1730535190965,1.85884548,2505.3,2505.2,0.27951]
[1730535191369,1.85884548,2505.3,2505.2,0.73721]
[1730535194881,1.85884548,2505.3,2505.2,0.27951]
[1730535202784,0.4343,2505.4,2505.2,5.42844548]
[1730535202975,0.8528,2505.5,2505.2,1.43644548]
[1730535203176,0.8528,2505.5,2505.4,0.27949]
[1730535210173,2.28924548,2505.5,2505.4,0.27949]
[1730535220689,0.8528,2505.5,2505.4,0.27949]
[1730535220889,0.4317,2505.5,2505.4,0.27949]
[1730535224291,1.86814548,2505.5,2505.4,0.27949]
[1730535228510,0.4317,2505.5,2505.4,0.27949]
[1730535232309,0.4317,2505.5,2505.4,0.98578669]
[1730535236008,0.4317,2505.5,2505.4,0.86094633]
[1730535236207,0.4317,2505.5,2505.4,0.27949]
[1730535236515,0.4317,2505.5,2505.4,0.98644686]
[1730535238919,0.4317,2505.5,2505.4,1.9179199]
[1730535239617,0.4317,2505.5,2505.4,0.27949]
[1730535240112,0.4317,2505.5,2505.4,0.86168206]
[1730535240319,0.4317,2505.5,2505.4,1.91803133]
[1730535246128,0.4317,2505.5,2505.4,1.91857427]
[1730535248624,4.10052572,2505.7,2505.4,1.63908427]
[1730535248830,4.10052572,2505.7,2505.6,0.27947]
[1730535249031,3.65992572,2505.7,2505.6,0.98671346]
[1730535249423,3.65992572,2505.7,2505.6,0.27947]
[1730535249618,3.65992572,2505.7,2505.6,0.98689492]
[1730535251326,4.08732572,2505.7,2505.6,0.98689492]
[1730535253032,4.08732572,2505.7,2505.6,0.86208395]
[1730535253229,4.08732572,2505.7,2505.6,0.98692478]
[1730535255231,4.08988399,2505.7,2505.6,0.98692478]
[1730535255441,0.70686,2505.7,2505.6,0.98692478]
[1730535257025,4.37007608,2505.7,2505.6,0.98692478]
[1730535257423,0.70686,2505.7,2505.6,0.98692478]
[1730535257832,4.69806,2505.7,2505.6,0.70745478]
[1730535258430,4.69806,2505.7,2505.6,0.58261395]
[1730535258938,8.88083226,2505.7,2505.6,0.58261395]
[1730535259437,12.08863226,2505.7,2505.6,0.58261395]
[1730535259636,7.90586,2505.7,2505.6,0.58261395]
[1730535260130,0.27947,2505.6,2505.5,0.27947]
[1730535260338,5.80542315,2505.6,2505.5,0.27947]
[1730535260635,5.80542315,2505.6,2505.5,0.98698049]
[1730535260833,5.80542315,2505.6,2505.5,0.98697377]
[1730535263639,5.52595315,2505.6,2505.5,0.98697377]
[1730535264735,5.52595315,2505.6,2505.5,0.98697191]
[1730535264736,5.80542315,2505.6,2505.5,0.98697191]
[1730535266841,5.80542315,2505.6,2505.5,0.27947]
[1730535267043,5.80542315,2505.6,2505.5,0.98695737]
[1730535267446,5.80542315,2505.6,2505.5,0.40431556]
[1730535267642,5.80542315,2505.6,2505.5,0.98696264]
[1730535270943,5.80542315,2505.6,2505.5,0.98693755]
[1730535271248,9.79662315,2505.6,2505.5,0.58262755]
[1730535271540,0.2795,2505.4,2505.2,0.2795]
[1730535271748,0.8871,2505.3,2505.2,0.2795]
[1730535271931,0.8871,2505.3,2505.2,1.91906963]
[1730535272447,0.8871,2505.3,2505.2,0.98693912]
[1730535273538,1.1666,2505.3,2505.2,0.98693912]
[1730535274145,1.1666,2505.3,2505.2,0.98694912]
[1730535274442,1.1666,2505.3,2505.2,0.70743912]
[1730535274844,1.1666,2505.3,2505.1,0.70042]
[1730535275044,0.4386,2505.2,2505.1,0.70042]
[1730535275340,0.4386,2505.2,2505.1,2.33935365]
[1730535275732,0.4386,2505.2,2505.1,1.40761534]
[1730535276849,0.4386,2505.2,2505.1,2.3391809]
[1730535277741,0.4386,2505.2,2505.1,1.40761534]
[1730535277937,0.4386,2505.2,2505.1,2.33911991]
[1730535278141,0.4386,2505.2,2505.1,1.40761534]
[1730535282541,0.4386,2505.2,2505.1,1.40733087]
[1730535285849,0.4386,2505.2,2505.1,1.28247197]
[1730535286044,0.4386,2505.2,2505.1,1.40732874]
[1730535286950,0.4386,2505.2,2505.1,0.70042]
[1730535287155,0.4386,2505.2,2505.1,1.40726739]
[1730535287352,0.4386,2505.2,2505.1,0.70042]
[1730535287546,0.4386,2505.2,2505.1,0.82527653]
[1730535287748,0.4386,2505.2,2505.1,1.40726755]
[1730535292351,7.58300096,2505.2,2505.1,0.70684755]
[1730535292551,0.27954,2505.0,2504.8,0.73715]
[1730535292754,1.43644548,2505.0,2504.9,0.27955]
[1730535292951,3.6464,2505.2,2505.1,0.27952]
[1730535293348,0.4386,2505.2,2505.1,0.27952]
[1730535293553,2.32354548,2505.3,2505.2,0.27951]
[1730535294755,2.60304548,2505.3,2505.2,0.27951]
[1730535295560,2.60304548,2505.3,2505.1,0.74331]
[1730535295751,1.71595548,2505.2,2505.1,0.74331]
[1730535296261,1.43644548,2505.2,2505.1,0.74331]
[1730535300656,1.71595548,2505.2,2505.1,0.74331]
[1730535300962,6.86187826,2505.4,2505.1,4.4558]
[1730535301264,9.01218374,2505.7,2505.5,0.27948]
[1730535301560,3.6422,2505.7,2505.6,0.69807]
[1730535301769,0.4344,2505.7,2505.6,0.69807]
[1730535302562,2.63329548,2505.8,2505.7,0.27946]
[1730535302563,1.43644548,2505.8,2505.7,0.27946]
[1730535302763,1.43644548,2505.8,2505.7,0.71286]
[1730535304057,1.71588548,2505.8,2505.7,0.71286]
[1730535304660,1.43644548,2505.8,2505.7,0.71286]
[1730535305259,4.92368548,2505.8,2505.7,0.71286]
[1730535305565,4.64424548,2505.8,2505.7,0.71286]
[1730535305765,0.27946,2505.7,2505.6,0.4186]
[1730535306063,2.60140548,2505.7,2505.6,0.4186]
[1730535306264,2.32194548,2505.7,2505.4,0.8728]
[1730535306461,1.43644548,2505.5,2505.3,0.4369]
[1730535306761,1.71593548,2505.4,2505.3,0.7164]
[1730535307171,1.43644548,2505.4,2505.3,0.7164]
[1730535309268,4.92373548,2505.5,2505.3,0.7164]
[1730535310669,1.71593548,2505.5,2505.3,0.7164]
[1730535310866,4.92373548,2505.5,2505.3,0.7164]
[1730535311166,0.27949,2505.4,2505.3,0.7164]
[1730535311361,4.92373548,2505.5,2505.3,0.7164]
[1730535311562,0.27949,2505.4,2505.3,0.7164]
[1730535311865,1.71592548,2505.5,2505.3,0.7164]
[1730535312172,4.92372548,2505.5,2505.3,0.7164]
[1730535313069,4.92372548,2505.5,2505.4,0.27949]
[1730535313571,4.92372548,2505.5,2505.3,0.4369]
[1730535313772,1.71592548,2505.5,2505.3,0.71639]
[1730535314174,4.92372548,2505.5,2505.3,0.71639]
[1730535314672,1.71592548,2505.5,2505.4,0.27949]
[1730535314871,4.92372548,2505.5,2505.4,0.27949]
[1730535317079,1.71592548,2505.5,2505.4,0.27949]
[1730535319364,0.27949,2505.4,2505.3,0.7164]
[1730535319577,1.43644548,2505.5,2505.3,0.4369]
[1730535319777,1.71592548,2505.5,2505.4,0.27949]
[1730535324185,0.27949,2505.4,2505.3,0.7164]
[1730535324982,0.27949,2505.4,2505.3,0.2795]
[1730535325284,1.71593548,2505.4,2505.3,0.2795]
[1730535326377,1.71593548,2505.4,2505.1,0.4611]
[1730535326678,0.7246,2505.3,2505.2,0.27951]
[1730535326883,1.6282,2505.3,2505.2,0.27951]
[1730535327181,1.3487,2505.3,2505.1,0.4611]
[1730535327386,0.27951,2505.2,2505.1,0.74062]
[1730535327581,0.27951,2505.2,2505.1,1.44734634]
[1730535327780,1.62821,2505.3,2505.1,1.44734634]
[1730535327977,1.62821,2505.3,2505.2,0.27951]
[1730535328178,0.27951,2505.2,2505.1,0.74062]
[1730535328483,0.27951,2505.2,2505.1,1.44735702]
[1730535328680,1.3487,2505.3,2505.1,1.16783702]
[1730535328879,1.6282,2505.3,2505.2,0.27951]
[1730535330482,1.3487,2505.3,2505.2,0.27951]
[1730535342393,1.3487,2505.3,2505.2,0.86147387]
[1730535343287,1.3487,2505.3,2505.2,0.861512]
[1730535345592,1.3487,2505.3,2505.2,0.27951]
[1730535345797,1.3487,2505.3,2505.2,0.86159621]
[1730535345999,1.3487,2505.3,2505.2,0.98645224]
[1730535346699,1.6282,2505.3,2505.2,0.86159621]
[1730535346902,1.3487,2505.3,2505.2,0.98645223]
[1730535347402,1.3487,2505.3,2505.2,0.98645133]
[1730535347794,1.3487,2505.3,2505.2,0.27951]
[1730535347996,1.3487,2505.3,2505.2,0.98645992]
[1730535349290,1.3487,2505.3,2505.2,0.27951]
[1730535349697,1.3487,2505.3,2505.2,0.98657757]
[1730535350896,1.6282,2505.3,2505.2,0.98657757]
[1730535351303,1.3487,2505.3,2505.2,0.98657757]
[1730535352815,1.6282,2505.3,2505.2,0.98657757]
[1730535353314,1.6282,2505.3,2505.2,0.98692573]
[1730535355209,1.3487,2505.3,2505.2,0.98692573]
[1730535356012,1.6282,2505.3,2505.2,0.98692573]
[1730535356805,1.3487,2505.3,2505.2,1.91905158]
[1730535357010,3.65407826,2505.4,2505.3,0.2795]
[1730535357208,6.86187826,2505.5,2505.4,0.27949]
[1730535357518,3.2078,2505.5,2505.4,2.37518648]
[1730535357720,3.2078,2505.5,2505.4,2.80168648]
[1730535358326,3.48728,2505.5,2505.4,1.86960573]
[1730535358520,3.2078,2505.5,2505.4,1.86960573]
[1730535359428,5.80629374,2505.6,2505.4,1.86960573]
[1730535359626,5.80629374,2505.6,2505.5,0.58256019]
[1730535360227,9.01409374,2505.6,2505.5,0.86195421]
[1730535361116,9.01409374,2505.6,2505.5,0.27948]
[1730535361326,9.01409374,2505.6,2505.5,0.86195388]
[1730535362024,5.80629374,2505.6,2505.5,0.27948]
[1730535362426,9.01409374,2505.6,2505.5,0.27948]
[1730535363131,5.80629374,2505.6,2505.5,0.27948]
[1730535363824,0.27948,2505.5,2505.4,1.16218]
[1730535364031,1.71592548,2505.5,2505.4,0.70726851]
[1730535364231,9.08172374,2505.5,2505.1,0.9054]
[1730535364427,0.4363,2505.6,2505.2,0.98681606]
[1730535364428,1.43644548,2505.3,2505.2,0.98681606]
[1730535364629,1.71594548,2505.3,2505.2,0.98681606]
[1730535364831,2.60294548,2505.3,2505.2,0.98681606]
[1730535366532,2.32344548,2505.3,2505.2,0.98681606]
[1730535366922,2.32344548,2505.3,2505.2,0.86195853]
[1730535367124,2.60294548,2505.3,2505.2,0.986815]
[1730535367325,2.60294548,2505.3,2505.2,0.707305]
[1730535367734,6.59494548,2505.3,2505.2,0.707305]
[1730535368030,10.49821774,2505.3,2504.8,0.71245]
[1730535368242,0.27955,2504.9,2504.8,0.71245]
[1730535368538,4.92378548,2505.0,2504.8,1.41971793]
[1730535368830,1.2797,2504.9,2504.8,0.27955]
[1730535369136,1.2797,2504.9,2504.8,0.98681642]
[1730535370023,1.55925,2504.9,2504.8,0.98681642]
[1730535370226,1.55925,2504.9,2504.8,0.70726642]